fUSD/lending_fUSD_20260107
["ID","MTS","AMOUNT","RATE_DAILY","PERIOD"]
[400697000,1767780671872,-500.0,0.0003863,14]
[400697001,1767780671881,-500.0,0.0003863,14]
[400697002,1767780671891,-500.0,0.0003863,14]
[400697003,1767780671901,-500.0,0.0003863,14]
[400697004,1767780671910,-1555.68,0.0003863,14]
[400697005,1767780671920,-500.0,0.0003863,14]
[400697006,1767780671929,-1192.02,0.0003863,14]
[400697007,1767780671939,-443.18203132,0.0003863,14]
[400697008,1767780671949,-539.31,0.0003863,14]
[400697009,1767780671958,-450.49028508,0.0003863,14]
[400697010,1767780671968,-500.0,0.0003863,14]
[400697011,1767780671977,-500.0,0.0003863,14]
[400697012,1767780671987,-500.0,0.0003863,14]
[400697013,1767780671997,-500.0,0.0003863,14]
[400697014,1767780672006,-500.0,0.0003863,14]
[400697015,1767780672015,-2273.82,0.0003863,14]
[400697016,1767780672026,-731.45,0.0003863,14]
[400697017,1767780672035,-500.0,0.0003863,14]
[400697018,1767780672045,-500.0,0.0003863,14]
[400697019,1767780672055,-500.0,0.0003863,14]
[400697020,1767780672064,-520.63005421,0.0003863,14]
[400697021,1767780672074,-922.81,0.0003863,14]
[400697022,1767780672084,-545.78,0.0003863,14]
[400697023,1767780672094,-500.0,0.0003863,14]
[400697024,1767780672104,-528.39153675,0.0003863,14]
[400697025,1767780672112,-548.37514902,0.0003863,14]
[400697026,1767780672122,-500.0,0.0003863,14]
[400697027,1767780672131,-500.0,0.0003863,14]
[400697028,1767780672141,-2463.82,0.0003863,14]
[400697029,1767780672151,-775.76,0.0003863,14]
[400697030,1767780672160,-500.0,0.0003863,14]
[400697031,1767780672170,-500.0,0.0003863,14]
[400697032,1767780672180,-500.0,0.0003863,14]
[400697033,1767780672190,-2149.0,0.0003863,14]
[400697034,1767780672199,-1766.52,0.0003863,14]
[400697035,1767780672212,-500.0,0.0003863,14]
[400697036,1767780672222,-500.0,0.0003863,14]
[400697037,1767780672231,-1055.25,0.0003863,14]
[400697038,1767780672241,-2821.3,0.0003863,14]
[400697039,1767780672251,-517.56,0.0003863,14]
[400697040,1767780672260,-500.0,0.0003863,14]
[400697041,1767780672270,-500.0,0.0003863,14]
[400697042,1767780672280,-500.0,0.0003863,14]
[400697043,1767780672289,-500.0,0.0003863,14]
[400697044,1767780672299,-500.0,0.0003863,14]
[400697045,1767780672309,-500.0,0.0003863,14]
[400697046,1767780672318,-500.0,0.0003863,14]
[400697047,1767780672327,-650.91,0.0003863,14]
[400697048,1767780672337,-500.0,0.0003863,14]
[400697049,1767780672346,-500.0,0.0003863,14]
[400697050,1767780672356,-1254.59,0.0003863,14]
[400697051,1767780672594,-500.0,0.0003863,14]
[400697052,1767780672604,-500.0,0.0003863,14]
[400697053,1767780672621,-523.8688265,0.0003863,14]
[400697054,1767780672633,-500.0,0.0003863,14]
[400697055,1767780672643,-500.0,0.0003863,14]
[400697056,1767780672654,-570.01867587,0.0003863,14]
[400697057,1767780672664,-500.0,0.0003863,14]
[400697058,1767780672674,-500.0,0.0003863,14]
[400697059,1767780672684,-500.0,0.0003863,14]
[400697060,1767780672693,-3120.48,0.0003863,14]
[400697061,1767780672704,-500.0,0.0003863,14]
[400697062,1767780672714,-1943.44,0.0003863,14]
[400697063,1767780672724,-500.0,0.0003863,14]
[400697064,1767780672733,-1457.04,0.0003863,14]
[400697065,1767780672745,-500.0,0.0003863,14]
[400697066,1767780672755,-1928.85,0.0003863,14]
[400697067,1767780672765,-500.0,0.0003863,14]
[400697068,1767780672774,-608.08,0.0003863,14]
[400697069,1767780672784,-500.0,0.0003863,14]
[400697070,1767780672794,-500.0,0.0003863,14]
[400697071,1767780672803,-500.0,0.0003863,14]
[400697072,1767780672813,-500.0,0.0003863,14]
[400697073,1767780672823,-528.02999228,0.0003863,14]
[400697074,1767780672833,-500.0,0.0003863,14]
[400697075,1767780672842,-680.1,0.0003863,14]
[400697076,1767780672855,-763.66,0.0003863,14]
[400697077,1767780672865,-1109.66,0.0003863,14]
[400697078,1767780672875,-890.9,0.0003863,14]
[400697079,1767780672884,-500.0,0.0003863,14]
[400697080,1767780672895,-543.48,0.0003863,14]
[400697081,1767780672904,-500.0,0.0003863,14]
[400697082,1767780672913,-500.0,0.0003863,14]
[400697083,1767780672923,-1814.51,0.0003863,14]
[400697084,1767780672933,-2497.76,0.0003863,14]
[400697085,1767780672942,-500.0,0.0003863,14]
[400697086,1767780672953,-1168.4,0.0003863,14]
[400697087,1767780672962,-500.0,0.0003863,14]
[400697088,1767780672972,-500.0,0.0003863,14]
[400697089,1767780672981,-500.0,0.0003863,14]
[400697090,1767780672991,-1347.61,0.0003863,14]
[400697091,1767780673000,-500.0,0.0003863,14]
[400697092,1767780673009,-500.0,0.0003863,14]
[400697093,1767780673019,-500.0,0.0003863,14]
[400697094,1767780673028,-631.82929911,0.0003863,14]
[400697095,1767780673038,-500.0,0.0003863,14]
[400697096,1767780673047,-500.0,0.0003863,14]
[400697097,1767780673057,-500.0,0.0003863,7]
[400697098,1767780673067,-657.68,0.0003863,14]
[400697099,1767780673077,-552.5319581,0.0003863,14]
[400697100,1767780673086,-500.0,0.0003863,14]
[400697101,1767780673095,-500.0,0.0003863,14]
[400697102,1767780673105,-500.0,0.0003863,14]
[400697103,1767780673114,-500.0,0.0003863,14]
[400697104,1767780673123,-500.0,0.0003863,14]
[400697105,1767780673133,-500.0,0.0003863,14]
[400697106,1767780673142,-500.0,0.0003863,14]
[400697107,1767780673152,-1330.76,0.0003863,14]
[400697108,1767780673161,-500.0,0.0003863,14]
[400697109,1767780673171,-570.67,0.0003863,14]
[400697110,1767780673181,-500.0,0.0003863,14]
[400697111,1767780673190,-500.0,0.0003863,14]
[400697112,1767780673199,-500.0,0.0003863,14]
[400697113,1767780673210,-500.0,0.0003863,14]
[400697114,1767780673220,-500.0,0.0003863,14]
[400697115,1767780673229,-500.0,0.0003863,14]
[400697116,1767780673239,-1561.51,0.0003863,14]
[400697117,1767780673248,-937.67,0.0003863,14]
[400697118,1767780673258,-500.0,0.0003863,14]
[400697119,1767780673283,-500.0,0.0003863,14]
[400697120,1767780673292,-500.0,0.0003863,12]
[400697121,1767780673303,-500.0,0.0003863,14]
[400697122,1767780673313,-722.69,0.0003863,14]
[400697123,1767780673322,-500.0,0.0003863,14]
[400697124,1767780673332,-500.0,0.0003863,14]
[400697125,1767780673343,-500.0,0.0003863,14]
[400697126,1767780673352,-500.0,0.0003863,14]
[400697127,1767780673361,-500.0,0.0003863,14]
[400697128,1767780673371,-534.91,0.0003863,14]
[400697129,1767780673381,-1806.99,0.0003863,14]
[400697130,1767780673391,-500.0,0.0003863,14]
[400697131,1767780673401,-543.39,0.0003863,14]
[400697132,1767780673411,-705.09,0.0003863,14]
[400697133,1767780673420,-500.0,0.0003863,14]
[400697134,1767780673429,-500.0,0.0003863,14]
[400697135,1767780673440,-500.0,0.0003863,14]
[400697136,1767780673453,-500.0,0.0003863,14]
[400697137,1767780673463,-500.0,0.0003863,14]
[400697138,1767780673472,-500.0,0.0003863,14]
[400697139,1767780673483,-2223.14,0.0003863,14]
[400697140,1767780673492,-500.0,0.0003863,14]
[400697141,1767780673502,-544.1,0.0003863,14]
[400697142,1767780673514,-500.0,0.0003863,14]
[400697143,1767780673525,-612.37,0.0003863,14]
[400697144,1767780673535,-500.0,0.0003863,14]
[400697145,1767780673544,-1188.27,0.0003863,14]
[400697146,1767780673553,-700.32,0.0003863,14]
[400697147,1767780673563,-2124.24,0.0003863,14]
[400697148,1767780673576,-500.0,0.0003863,14]
[400697149,1767780673586,-500.0,0.0003863,14]
[400697150,1767780673595,-500.0,0.0003863,14]
[400697151,1767780673605,-527.04636813,0.0003863,14]
[400697152,1767780673615,-1218.41,0.0003863,14]
[400697153,1767780673624,-818.35,0.0003863,14]
[400697154,1767780673634,-706.01,0.0003863,14]
[400697155,1767780673643,-505.29,0.0003863,14]
[400697156,1767780673653,-500.0,0.0003863,14]
[400697157,1767780673662,-574.16419348,0.0003863,14]
[400697158,1767780673671,-500.0,0.0003863,14]
[400697159,1767780673681,-500.0,0.0003863,14]
[400697160,1767780673691,-500.0,0.0003863,14]
[400697161,1767780673700,-500.0,0.0003863,14]
[400697162,1767780673710,-500.0,0.0003863,14]
[400697163,1767780673719,-500.0,0.0003863,14]
[400697164,1767780673730,-302.90923456,0.0003863,14]
[400697165,1767780673740,-500.0,0.0003863,14]
[400697166,1767780673749,-500.0,0.0003863,14]
[400697167,1767780673759,-500.0,0.0003863,14]
[400697168,1767780673768,-563.84,0.0003863,14]
[400697169,1767780673777,-1273.78,0.0003863,14]
[400697170,1767780673786,-500.0,0.0003863,14]
[400697171,1767780673796,-1669.49,0.0003863,14]
[400697172,1767780673805,-285.12269078,0.0003863,14]
[400697173,1767780673815,-500.0,0.0003863,14]
[400697174,1767780673824,-500.0,0.0003863,14]
[400697175,1767780673833,-500.0,0.0003863,14]
[400697176,1767780673843,-573.65,0.0003863,14]
[400697177,1767780673852,-500.0,0.0003863,14]
[400697178,1767780673861,-500.0,0.0003863,14]
[400697179,1767780673870,-514.65,0.0003863,14]
[400697180,1767780673879,-500.0,0.0003863,14]
[400697181,1767780673889,-500.0,0.0003863,14]
[400697182,1767780673898,-1302.45,0.0003863,14]
[400697183,1767780673906,-1660.18,0.0003863,14]
[400697184,1767780673916,-821.41,0.0003863,14]
[400697185,1767780673925,-500.0,0.0003863,14]
[400697186,1767780673934,-500.0,0.0003863,14]
[400697187,1767780673944,-500.0,0.0003863,14]
[400697188,1767780673953,-754.5,0.0003863,14]
[400697189,1767780673963,-812.59,0.0003863,14]
[400697190,1767780673972,-500.0,0.0003863,14]
[400697191,1767780673981,-974.78,0.0003863,14]
[400697192,1767780673990,-500.0,0.0003863,14]
[400697193,1767780674000,-648.67,0.0003863,14]
[400697194,1767780674010,-528.02778983,0.0003863,14]
[400697195,1767780674019,-500.0,0.0003863,14]
[400697196,1767780674028,-500.0,0.0003863,14]
[400697197,1767780674037,-500.0,0.0003863,14]
[400697198,1767780674047,-500.0,0.0003863,14]
[400697199,1767780674056,-500.0,0.0003863,14]
[400697200,1767780674065,-500.0,0.0003863,14]
[400697201,1767780674074,-2304.75,0.0003863,14]
[400697202,1767780674083,-500.0,0.0003863,14]
[400697203,1767780674092,-500.0,0.0003863,14]
[400697204,1767780674101,-500.0,0.0003863,14]
[400697205,1767780674110,-500.0,0.0003863,14]
[400697206,1767780674120,-500.0,0.0003863,14]
[400697207,1767780674129,-1888.77,0.0003863,14]
[400697208,1767780674142,-231.32275,0.0003863,104]
[400697209,1767780674152,-231.32275,0.0003863,104]
[400697210,1767780674161,-231.32275,0.0003863,104]
[400697211,1767780674171,-231.32275,0.0003863,104]
[400697212,1767780674180,-231.32275,0.0003863,104]
[400697213,1767780674189,-231.32275,0.0003863,104]
[400697214,1767780674199,-500.0,0.0003863,14]
[400697215,1767780674208,-500.0,0.0003863,14]
[400697216,1767780674217,-642.09,0.0003863,14]
[400697217,1767780674227,-620.22,0.0003863,14]
[400697218,1767780674236,-500.0,0.0003863,14]
[400697219,1767780674245,-500.0,0.0003863,14]
[400697220,1767780674266,-500.0,0.0003863,14]
[400697221,1767780674276,-500.0,0.0003863,14]
[400697222,1767780674285,-500.0,0.0003863,14]
[400697223,1767780674294,-652.57,0.0003863,14]
[400697224,1767780674303,-500.0,0.0003863,14]
[400697225,1767780674312,-500.0,0.0003863,14]
[400697226,1767780674322,-763.21,0.0003863,14]
[400697227,1767780674331,-500.0,0.0003863,14]
[400697228,1767780674340,-1353.54,0.0003863,14]
[400697229,1767780674354,-500.0,0.0003863,14]
[400697230,1767780674363,-500.0,0.0003863,14]
[400697231,1767780674373,-500.0,0.0003863,14]
[400697232,1767780674382,-500.0,0.0003863,14]
[400697233,1767780674392,-821.52,0.0003863,14]
[400697234,1767780674402,-500.0,0.0003863,14]
[400697235,1767780674413,-1042.57,0.0003863,14]
[400697236,1767780674423,-500.0,0.0003863,14]
[400697237,1767780674433,-500.0,0.0003863,14]
[400697238,1767780674445,-500.0,0.0003863,14]
[400697239,1767780674456,-1372.32,0.0003863,14]
[400697240,1767780674465,-500.0,0.0003863,14]
[400697241,1767780674474,-500.0,0.0003863,14]
[400697242,1767780674485,-760.54,0.0003863,14]
[400697243,1767780674494,-500.0,0.0003863,14]
[400697244,1767780674503,-500.0,0.0003863,14]
[400697245,1767780674514,-500.0,0.0003863,14]
[400697246,1767780674525,-1285.83,0.0003863,14]
[400697247,1767780674534,-500.0,0.0003863,14]
[400697248,1767780674544,-603.00797096,0.0003863,14]
[400697249,1767780674556,-2433.04,0.0003863,14]
[400697250,1767780674566,-477.38530816,0.0003863,14]
[400697251,1767780674575,-673.42,0.0003863,14]
[400697252,1767780674585,-699.14,0.0003863,14]
[400697253,1767780674595,-500.0,0.0003863,14]
[400697254,1767780674604,-500.0,0.0003863,14]
[400697255,1767780674613,-2645.68,0.0003863,14]
[400697256,1767780674623,-500.0,0.0003863,14]
[400697257,1767780674633,-925.03,0.0003863,14]
[400697258,1767780674643,-500.0,0.0003863,14]
[400697259,1767780674652,-500.0,0.0003863,14]
[400697260,1767780674661,-1421.08,0.0003863,14]
[400697261,1767780674671,-500.0,0.0003863,14]
[400697262,1767780674680,-500.0,0.0003863,14]
[400697263,1767780674690,-971.84,0.0003863,14]
[400697264,1767780674699,-500.0,0.0003863,14]
[400697265,1767780674708,-500.0,0.0003863,14]
[400697266,1767780674718,-500.0,0.0003863,14]
[400697267,1767780674727,-505.84,0.0003863,14]
[400697268,1767780674736,-1346.133133,0.0003863,120]
[400697269,1767780674745,-500.0,0.0003863,14]
[400697270,1767780674757,-500.0,0.0003863,14]
[400697271,1767780674766,-574.24700407,0.0003863,14]
[400697272,1767780674776,-1346.133133,0.0003863,120]
[400697273,1767780674785,-500.0,0.0003863,14]
[400697274,1767780674795,-639.6,0.0003863,14]
[400697275,1767780674805,-500.0,0.0003863,14]
[400697276,1767780674814,-532.37651155,0.0003863,14]
[400697277,1767780674823,-1346.133133,0.0003863,120]
[400697278,1767780674832,-534.9344602,0.0003863,14]
[400697279,1767780674843,-948.27,0.0003863,14]
[400697280,1767780674852,-500.0,0.0003863,14]
[400697281,1767780674862,-1146.48,0.0003863,14]
[400697282,1767780674871,-1346.133133,0.0003863,120]
[400697283,1767780674881,-924.78,0.0003863,14]
[400697284,1767780674891,-519.49,0.0003863,14]
[400697285,1767780674900,-500.0,0.0003863,14]
[400697286,1767780674910,-506.62,0.0003863,14]
[400697287,1767780674919,-569.20797382,0.0003863,14]
[400697288,1767780674930,-203.13927019,0.0003863,14]
[400697289,1767780674940,-500.0,0.0003863,14]
[400697290,1767780674950,-421.07179289,0.0003863,14]
[400697291,1767780674962,-500.0,0.0003863,14]
[400697292,1767780674971,-500.0,0.0003863,14]
[400697293,1767780674981,-500.0,0.0003863,14]
[400697294,1767780674990,-1392.78,0.0003863,14]
[400697295,1767780675000,-500.0,0.0003863,14]
[400697296,1767780675010,-500.0,0.0003863,14]
[400697297,1767780675019,-500.0,0.0003863,14]
[400697298,1767780675030,-500.0,0.0003863,14]
[400697299,1767780675039,-1045.17,0.0003863,14]
[400697300,1767780675049,-500.0,0.0003863,14]
[400697301,1767780675059,-847.9,0.0003863,14]
[400697302,1767780675068,-500.0,0.0003863,14]
[400697303,1767780675078,-151.0,0.0003863,120]
[400697304,1767780675087,-500.0,0.0003863,14]
[400697305,1767780675096,-1812.63,0.0003863,14]
[400697306,1767780675106,-500.0,0.0003863,14]
[400697307,1767780675115,-500.0,0.0003863,14]
[400697308,1767780675125,-500.0,0.0003863,14]
[400697309,1767780675134,-151.0,0.0003863,120]
[400697310,1767780675144,-500.0,0.0003863,14]
[400697311,1767780675153,-6399.15,0.0003863,14]
[400697312,1767780675163,-500.0,0.0003863,14]
[400697313,1767780675173,-151.0,0.0003863,120]
[400697314,1767780675182,-500.0,0.0003863,14]
[400697315,1767780675192,-500.0,0.0003863,14]
[400697316,1767780675201,-3507.96,0.0003863,14]
[400697317,1767780675210,-500.0,0.0003863,14]
[400697318,1767780675219,-500.0,0.0003863,14]
[400697319,1767780675229,-500.0,0.0003863,14]
[400697320,1767780675238,-500.0,0.0003863,14]
[400697321,1767780675247,-500.0,0.0003863,14]
[400697322,1767780675256,-500.0,0.0003863,14]
[400697323,1767780675266,-500.0,0.0003863,14]
[400697324,1767780675275,-752.91,0.0003863,14]
[400697325,1767780675285,-500.0,0.0003863,14]
[400697326,1767780675294,-500.0,0.0003863,14]
[400697327,1767780675304,-500.0,0.0003863,14]
[400697328,1767780675314,-549.41601771,0.0003863,14]
[400697329,1767780675324,-500.0,0.0003863,14]
[400697330,1767780675341,-500.0,0.0003863,14]
[400697331,1767780675353,-313.49689859,0.0003863,5]
[400697332,1767780676669,-186.50310141,0.0003863,5]
[400697333,1767780676678,-500.0,0.0003863,14]
[400697334,1767780676688,-500.0,0.0003863,14]
[400697335,1767780676698,-554.25,0.0003863,14]
[400697336,1767780676707,-768.99,0.0003863,14]
[400697337,1767780676716,-875.39,0.0003863,14]
[400697338,1767780676726,-2204.58,0.0003863,14]
[400697339,1767780676735,-869.33,0.0003863,14]
[400697340,1767780676744,-500.0,0.0003863,14]
[400697341,1767780676753,-500.0,0.0003863,14]
[400697342,1767780676763,-496.83753702,0.0003863,14]
[400697343,1767780676775,-3.16246298,0.0003863,14]
[400697344,1767780676784,-500.0,0.0003863,14]
[400697345,1767780676794,-500.0,0.0003863,14]
[400697346,1767780676803,-185.58376193,0.0003863,14]
[400697347,1767780676815,-314.41623807,0.0003863,14]
[400697348,1767780676824,-980.39780555,0.0003863,14]
[400697349,1767780678740,-2436.0,0.00032516,2]
[400697350,1767780678756,-2436.0,0.00035516,2]
[400697351,1767780678771,-431.04,0.00038356,14]
[400697352,1767780678813,-68.96,0.00038356,14]
[400697353,1767780678828,-519.80868564,0.00038356,14]
[400697354,1767780678842,-297.10993176,0.00038356,14]
[400697355,1767780678860,-202.89006824,0.00038356,14]
[400697356,1767780678874,-84.55743176,0.00038356,14]
[400697357,1767780679106,-300.0,0.00037696,2]
[400697358,1767780679116,-300.0,0.00037837,2]
[400697359,1767780679126,-300.0,0.00037913,2]
[400697360,1767780679136,-32.77208902,0.00037919,2]
[400697361,1767780680464,-300.0,0.0003763,2]
[400697362,1767780680488,-300.0,0.00037676,2]
[400697363,1767780680505,-300.0,0.00037685,2]
[400697364,1767780680518,-300.0,0.00037701,2]
[400697365,1767780680528,-161.07983159,0.00037727,2]
[400697366,1767780680539,-138.92016841,0.00037727,2]
[400697367,1767780680548,-236.754767,0.00037739,2]
[400697368,1767780680563,-63.245233,0.00037739,2]
[400697369,1767780680573,-300.0,0.00037739,2]
[400697370,1767780680583,-300.0,0.00037754,2]
[400697371,1767780680593,-300.0,0.00037787,2]
[400697372,1767780680603,-300.0,0.00037865,2]
[400697373,1767780680612,-267.22791098,0.00037919,2]
[400697374,1767780680623,-300.0,0.00037919,2]
[400697375,1767780680633,-300.0,0.00037956,2]
[400697376,1767780680643,-300.0,0.00037983,2]
[400697377,1767780680652,-300.0,0.00038044,2]
[400697378,1767780680662,-300.0,0.00038071,2]
[400697379,1767780680672,-300.0,0.00038083,2]
[400697380,1767780680681,-300.0,0.00038131,2]
[400697381,1767780680691,-300.0,0.00038139,2]
[400697382,1767780680700,-300.0,0.00038304,2]
[400697383,1767780680710,-300.0,0.00038347,2]
[400697384,1767780680720,-617.25256824,0.00038356,14]
[400697385,1767780680729,-500.0,0.00038356,14]
[400697386,1767780680739,-500.0,0.00038356,14]
[400697387,1767780680748,-500.0,0.00038356,14]
[400697388,1767780680758,-356.85420979,0.00038356,14]
[400697389,1767780734598,713.0,0.00032877,120]
[400697390,1767780778205,550.67,0.00032877,120]
[400697395,1767781028599,166.2,0.00012698,2]
[400697396,1767781028805,166.2,0.00014814,2]
[400697397,1767781174445,1000.0,0.00015353,2]
[400697401,1767781233278,5598.44,0.00015264,2]
[400697406,1767781352298,678.391476,0.00015365,2]
[400697407,1767781354067,1957.05781735,0.00015382,2]
[400697408,1767781434975,150.0,0.0001519,2]
[400697409,1767781438130,208.78,0.0001519,2]
[400697413,1767781517027,1562.21,0.00015161,2]
[400697414,1767781520036,200.0,0.00015161,2]
[400697415,1767781524676,1026.43649281,0.000108,2]
[400697416,1767781560240,7211.36350719,8e-05,2]
[400697417,1767781560262,10000.01,8e-05,2]
[400697418,1767781560284,6335.99247217,8e-05,2]
[400697419,1767781564052,935.29717806,0.00011,2]
[400697422,1767781585332,2045.01198527,0.00015,2]
[400697423,1767781620790,1517.64,0.000153,2]
[400697424,1767781633413,3784.05513473,0.0001305,2]
[400697425,1767781633906,259.44248152,0.000101,2]
[400697426,1767781685087,2393.86039848,0.0001439,2]
[400697427,1767781685110,6609.36740258,0.0001439,2]
[400697428,1767781687173,364.92674771,0.00014917,2]
[400697432,1767781698370,3025.71584971,0.00015,2]
[400697433,1767781698393,1476.5749474,0.00015,2]
[400697436,1767781711880,5014.92,0.00014999,2]
[400697455,1767781766770,151.1,0.00014874,2]
[400697456,1767781776380,-195.0,0.00015453,2]
[400697457,1767781776405,-15.97159934,0.00015463,2]
[400697458,1767781778572,-210.87619758,0.00015463,2]
[400697459,1767781781453,-73.15220308,0.00015463,2]
[400697460,1767781781475,-137.7239945,0.00015477,2]
[400697461,1767781783652,-57.2760055,0.00015477,2]
[400697462,1767781783675,-153.60019209,0.00015482,2]
[400697463,1767781792049,-125.39980791,0.00015482,2]
[400697464,1767781792072,-92.8584749,0.00015482,2]
[400697466,1767781812764,633.98,7.494e-05,2]
[400697468,1767781812942,633.98,7.889e-05,2]
[400697469,1767781813138,633.98,8.283e-05,2]
[400697470,1767781813337,633.98,8.678e-05,2]
[400697471,1767781813663,633.98,9.072e-05,2]
[400697472,1767781813861,633.98,9.466e-05,2]
[400697473,1767781814063,633.98,9.861e-05,2]
[400697475,1767781814265,633.98,0.00010255,2]
[400697476,1767781814464,633.98,0.0001065,2]
[400697477,1767781814660,633.98,0.00011044,2]
[400697478,1767781814870,633.98,0.00011439,2]
[400697479,1767781815058,633.98,0.00011833,2]
[400697480,1767781815247,633.98,0.00012228,2]
[400697481,1767781815431,633.98,0.00012622,2]
[400697482,1767781815638,633.98,0.00013016,2]
[400697483,1767781815846,490.31,0.00013411,2]
[400697484,1767781815868,143.67,0.00013411,2]
[400697485,1767781816311,633.98,0.00013805,2]
[400697486,1767781816446,633.98,0.000142,2]
[400697487,1767781816521,633.98,0.00014594,2]
[400697488,1767781816769,633.98,0.00014989,2]
[400697490,1767781819556,2042.09,0.00015014,2]
[400697506,1767781832231,-279.0,0.00015482,2]
[400697507,1767781832242,-2550.0915251,0.00015482,2]
[400697508,1767781832252,-500.0,0.00015596,2]
[400697509,1767781832262,-300.0,0.00015604,2]
[400697510,1767781832271,-225.82938084,0.00015604,2]
[400697513,1767781836818,-15.17061916,0.00015604,2]
[400697514,1767781836828,-1200.0,0.00015604,2]
[400697515,1767781836840,-300.0,0.00015604,2]
[400697516,1767781836850,-2252.25064227,0.00015605,2]
[400697517,1767781836873,-12074.83335599,0.00015605,2]
[400697518,1767781836930,-2241.16060208,0.00015605,2]
[400697519,1767781836943,-324.27327818,0.00015605,2]
[400697520,1767781836954,-253.75974854,0.00015605,2]
[400697526,1767781838455,-234909.6758825,0.00015605,2]
[400697527,1767781838515,-779.72712983,0.00015605,2]
[400697665,1767781840299,-1256.38003316,0.00015605,2]
[400697666,1767781840458,-3339.36107445,0.00015605,2]
[400697667,1767781840470,-539.63574858,0.00015605,2]
[400697668,1767781840515,-367.2792026,0.00015605,2]
[400697669,1767781840568,-398.52112028,0.00015605,2]
[400697670,1767781840681,-400.4202285,0.00015605,2]
[400697671,1767781840744,-505.60542929,0.00015605,2]
[400697680,1767781846080,-917.31,0.00015605,2]
[400697681,1767781846238,-5139.7201053,0.00015605,2]
[400697682,1767781846294,-28373.97888952,0.00015605,2]
[400697685,1767781864145,154.57,0.00015482,2]
[400697686,1767781871291,-4950.3485623,0.00015482,2]
[400697687,1767781871713,-3874.97124849,0.00015482,2]
[400697688,1767781871742,-281.83931929,0.00015482,2]
[400697689,1767781872116,-3382.9204126,0.00015506,2]
[400697690,1767781872291,-3234.1691748,0.00015506,2]
[400697691,1767781872320,-300.0,0.00015555,2]
[400697692,1767781872349,-195.0,0.00015555,2]
[400697693,1767781876926,1245.93404533,0.00015506,2]
[400697694,1767781893206,1295.73760507,0.00015293,2]
[400697695,1767781893228,116.21539493,0.00015293,2]
[400697696,1767781893336,163.592,0.00015293,2]
[400697705,1767781921252,300.0,0.00015604,2]
[400697706,1767781931762,999.0,0.00015116,3]
[400697707,1767781934026,500.0,0.00015104,2]
[400697708,1767781981662,226.0,0.00015604,2]
[400697713,1767781986031,1154.93,0.00015269,2]
[400697714,1767782014025,6540.27260507,0.00015505,2]
[400697715,1767782014048,6880.37623442,0.00015505,2]
[400697717,1767782041316,300.0,0.00015604,2]
[400697718,1767782041883,663.09,0.00015595,3]
[400697719,1767782047446,200.0,0.00015115,2]
[400697723,1767782059550,-90400.0,0.00015605,2]
[400697724,1767782078250,1000.0,0.00015505,2]
[400697725,1767782084020,956.54376558,0.00015505,2]
[400697726,1767782084042,331.04623442,0.00015505,2]
[400697727,1767782096053,2500.0,0.00015505,2]